[Event "ESP-chT 2nd Division 2019"]
[Site "Linares"]
[Date "2019.08.21"]
[Round "4.28"]
[White "Quintin Navarro, Alberto"]
[Black "Garcia Salamero, Gabriel"]
[Result "1-0"]
[ECO "E06"]
[WhiteElo "2376"]
[BlackElo "2168"]
[Annotator "NA"]
[PlyCount "110"]
[EventDate "2019.08.19"]
[EventType "team-tourn"]
[EventCountry "ESP"]
[SourceTitle "playchess.com"]
[Source "ChessBase"]
[SourceQuality "1"]
[TimeControl "5400+30"]

1. d4 {[%emt 0:00:00]} d5 {[%emt 0:00:00]} 2. c4 {[%emt 0:00:00]} e6 {[%emt 0:00:00]} 3. Nf3 {[%emt 0:00:00]} Nf6 {[%emt 0:00:00]} 4. g3 {[%emt 0:00:00]} Be7 {[%emt 0:00:00]} 5. Bg2 {[%emt 0:00:00]} O-O {[%emt 0:00:00]} 6. O-O {[%emt 0:00:00]} b6 {[%emt 0:00:00]} 7. Nc3 {[%emt 0:00:06]} Bb7 {[%emt 0:00:00]} 8. cxd5 {[%emt 0:00:08]} exd5 {[%emt 0:05:27]} 9. Ne5 {[%emt 0:01:35]} Nbd7 {[%emt 0:04:41]} 10. Qa4 {[%emt 0:01:25]} Nb8 {[%emt 0:11:17]} 11. Rd1 {[%emt 0:03:57]} h6 {[%emt 0:05:54]} 12. Bf4 {[%emt 0:01:56]} a6 {[%emt 0:00:03]} 13. Rac1 {[%emt 0:00:55]} Bd6 {[%emt 0:04:40]} 14. Qb3 {[%emt 0:02:00]} c6 {[%emt 0:02:20]} 15. e4 {[%emt 0:01:07]} Bc7 {[%emt 0:06:36]} 16. exd5 {[%emt 0:05:30]} cxd5 {[%emt 0:00:57]} 17. Ng6 {[%emt 0:05:37]} Bxf4 {[%emt 0:06:25]} 18. Nxf4 {[%emt 0:00:08]} Nc6 {[%emt 0:04:56]} 19. Ncxd5 {[%emt 0:02:08]} Na5 {[%emt 0:06:16]} 20. Nxf6+ {[%emt 0:07:51]} Qxf6 {[%emt 0:00:02]} 21. Qb4 {[%emt 0:01:56]} Bxg2 {[%emt 0:00:57]} 22. Kxg2 {[%emt 0:00:10]} Rfd8 {[%emt 0:01:01]} 23. Qc3 {[%emt 0:05:03]} Rd6 {[%emt 0:04:12]} 24. d5 {[%emt 0:17:38]} Qxc3 {[%emt 0:04:59]} 25. Rxc3 {[%emt 0:00:06]} b5 {[%emt 0:00:15]} 26. b3 {[%emt 0:01:39]} Rad8 {[%emt 0:00:56]} 27. Rc7 {[%emt 0:00:29]} Kf8 {[%emt 0:03:39]} 28. Ra7 {[%emt 0:05:12]} R8d7 {[%emt 0:01:58]} 29. Ra8+ {[%emt 0:01:42]} Rd8 {[%emt 0:00:01]} 30. Rxd8+ {[%emt 0:00:18]} Rxd8 {[%emt 0:00:02]} 31. Kf3 {[%emt 0:00:22]} Ke7 {[%emt 0:06:20]} 32. Ke4 {[%emt 0:01:21]} Kd6 {[%emt 0:01:00]} 33. Rc1 {[%emt 0:01:36]} Re8+ {[%emt 0:08:09]} 34. Kd3 {[%emt 0:08:32]} g5 {[%emt 0:01:25]} 35. Ne2 {[%emt 0:00:28]} f5 {[%emt 0:05:42]} 36. Nd4 {[%emt 0:08:16]} Re5 {[%emt 0:00:13]} 37. Rc8 {[%emt 0:00:33]} Nb7 {[%emt 0:01:47]} 38. b4 {[%emt 0:00:47]} Rxd5 {[%emt 0:03:02]} 39. Rf8 {[%emt 0:02:15]} Kc7 {[%emt 0:01:17]} 40. Rf7+ {[%emt 0:01:20]} Kb6 {[%emt 0:01:02]} 41. Rxf5 {[%emt 0:00:13]} Rd6 {[%emt 0:00:33]} 42. Ke4 {[%emt 0:00:27]} Rg6 {[%emt 0:01:03]} 43. Ke5 {[%emt 0:00:57]} Nd6 {[%emt 0:00:53]} 44. Rf6 {[%emt 0:02:12]} Rxf6 {[%emt 0:00:01]} 45. Kxf6 {[%emt 0:00:10]} Ne4+ {[%emt 0:00:01]} 46. Kg6 {[%emt 0:00:09]} Nxf2 {[%emt 0:00:02]} 47. h4 {[%emt 0:03:31]} Ne4 {[%emt 0:01:42]} 48. Kxh6 {[%emt 0:00:10]} gxh4 {[%emt 0:01:33]} 49. gxh4 {[%emt 0:00:06]} Kc7 {[%emt 0:00:12]} 50. Kg6 {[%emt 0:00:17]} Kd6 {[%emt 0:00:48]} 51. h5 {[%emt 0:00:13]} Ke5 {[%emt 0:00:36]} 52. h6 {[%emt 0:00:33]} Nf6 {[%emt 0:00:08]} 53. Nc6+ {[%emt 0:00:41]} Ke6 {[%emt 0:00:01]} 54. h7 {[%emt 0:00:29]} Nxh7 {[%emt 0:00:07]} 55. Kxh7 {[%emt 0:00:06]} Kd5 1-0

[Event "ESP-chT 2nd Division 2019"]
[Site "Linares"]
[Date "2019.08.21"]
[Round "4.29"]
[White "Garcia Garrido, Antonio"]
[Black "Vela Frago, Alberto"]
[Result "1-0"]
[ECO "C50"]
[WhiteElo "2136"]
[BlackElo "2155"]
[Annotator "NA"]
[PlyCount "50"]
[EventDate "2019.08.19"]
[EventType "team-tourn"]
[EventCountry "ESP"]
[SourceTitle "playchess.com"]
[Source "ChessBase"]
[SourceQuality "1"]
[TimeControl "5400+30"]

1. e4 {[%emt 0:00:00]} e5 {[%emt 0:00:00]} 2. Nf3 {[%emt 0:00:00]} Nc6 {[%emt 0:00:00]} 3. Bc4 {[%emt 0:00:20]} Nf6 {[%emt 0:00:21]} 4. d3 {[%emt 0:01:30]} Bc5 {[%emt 0:00:06]} 5. c3 {[%emt 0:00:23]} d6 {[%emt 0:01:11]} 6. Qe2 {[%emt 0:04:52]} O-O {[%emt 0:01:10]} 7. O-O {[%emt 0:00:40]} a5 {[%emt 0:02:02]} 8. a4 {[%emt 0:00:40]} Be6 {[%emt 0:01:56]} 9. Bxe6 {[%emt 0:10:58]} fxe6 {[%emt 0:00:08]} 10. Be3 {[%emt 0:00:05]} Bxe3 {[%emt 0:02:30]} 11. fxe3 {[%emt 0:00:19]} d5 {[%emt 0:04:19]} 12. Nbd2 {[%emt 0:05:37]} Qd7 {[%emt 0:05:14]} 13. d4 {[%emt 0:14:08]} Nxe4 {[%emt 0:06:51]} 14. Nxe4 {[%emt 0:04:01]} dxe4 {[%emt 0:00:39]} 15. Ng5 {[%emt 0:02:11]} exd4 {[%emt 0:10:40]} 16. exd4 {[%emt 0:00:48]} Qd5 {[%emt 0:00:20]} 17. Qg4 {[%emt 0:04:11]} e5 {[%emt 0:21:25]} 18. Ne6 {[%emt 0:02:29]} Qd7 {[%emt 0:00:21]} 19. d5 {[%emt 0:00:11]} Na7 {[%emt 0:02:00]} 20. Qxe4 {[%emt 0:00:41]} Rxf1+ {[%emt 0:03:43]} 21. Rxf1 {[%emt 0:00:09]} Re8 {[%emt 0:07:08]} 22. Qxe5 {[%emt 0:09:18]} c6 {[%emt 0:00:12]} 23. Qf5 {[%emt 0:00:13]} Qe7 {[%emt 0:01:54]} 24. d6 {[%emt 0:01:06]} Qxe6 {[%emt 0:01:39]} 25. d7 {[%emt 0:00:06]} Qxd7 1-0

[Event "ESP-chT 2nd Division 2019"]
[Site "Linares"]
[Date "2019.08.21"]
[Round "4.30"]
[White "Roque Sola, Gisela"]
[Black "Collado Barbas, Laura"]
[Result "0-1"]
[ECO "A13"]
[WhiteElo "2048"]
[BlackElo "2070"]
[Annotator "NA"]
[PlyCount "80"]
[EventDate "2019.08.19"]
[EventType "team-tourn"]
[EventCountry "ESP"]
[SourceTitle "playchess.com"]
[Source "ChessBase"]
[SourceQuality "1"]
[TimeControl "5400+30"]

1. c4 {[%emt 0:00:00]} e6 {[%emt 0:00:00]} 2. Nf3 {[%emt 0:00:00]} d5 {[%emt 0:00:00]} 3. b3 {[%emt 0:00:23]} d4 {[%emt 0:03:23]} 4. Bb2 {[%emt 0:02:09]} c5 {[%emt 0:00:26]} 5. g3 {[%emt 0:00:55]} Nc6 {[%emt 0:00:27]} 6. Bg2 {[%emt 0:00:29]} Be7 {[%emt 0:01:48]} 7. O-O {[%emt 0:02:34]} Nf6 {[%emt 0:05:11]} 8. e3 {[%emt 0:05:25]} O-O {[%emt 0:01:28]} 9. Na3 {[%emt 0:07:56]} Ne8 {[%emt 0:11:08]} 10. exd4 {[%emt 0:07:53]} cxd4 {[%emt 0:01:05]} 11. Re1 {[%emt 0:02:18]} Bf6 {[%emt 0:03:59]} 12. d3 {[%emt 0:04:50]} a5 {[%emt 0:17:58]} 13. Nc2 {[%emt 0:10:39]} Nc7 {[%emt 0:10:33]} 14. a3 {[%emt 0:06:10]} e5 {[%emt 0:13:07]} 15. b4 {[%emt 0:01:05]} axb4 {[%emt 0:00:39]} 16. axb4 {[%emt 0:00:16]} Rxa1 {[%emt 0:01:02]} 17. Bxa1 {[%emt 0:01:17]} b5 {[%emt 0:03:40]} 18. Nd2 {[%emt 0:07:39]} Bb7 {[%emt 0:02:04]} 19. Be4 {[%emt 0:02:16]} Qd6 {[%emt 0:02:12]} 20. Qf3 {[%emt 0:03:57]} Nxb4 {[%emt 0:05:17]} 21. Bxb7 {[%emt 0:12:31]} Nxc2 {[%emt 0:00:06]} 22. Rc1 {[%emt 0:00:11]} Nxa1 {[%emt 0:00:34]} 23. Rxa1 {[%emt 0:00:04]} bxc4 {[%emt 0:01:02]} 24. Nxc4 {[%emt 0:00:36]} Qe6 {[%emt 0:01:57]} 25. Rb1 {[%emt 0:04:41]} Rd8 {[%emt 0:01:24]} 26. Rb6 {[%emt 0:01:37]} Qe7 {[%emt 0:00:18]} 27. Bc6 {[%emt 0:05:00]} Ne6 {[%emt 0:06:14]} 28. Rb7 {[%emt 0:01:23]} Ng5 {[%emt 0:01:15]} 29. Qg2 {[%emt 0:03:23]} Qc5 {[%emt 0:04:15]} 30. h4 {[%emt 0:02:52]} Nh3+ {[%emt 0:01:48]} 31. Qxh3 {[%emt 0:02:45]} Qxc6 {[%emt 0:00:07]} 32. Rb6 {[%emt 0:00:05]} Qf3 {[%emt 0:00:40]} 33. Rd6 {[%emt 0:02:34]} Ra8 {[%emt 0:00:49]} 34. Ra6 {[%emt 0:00:08]} Rd8 {[%emt 0:00:30]} 35. Rd6 {[%emt 0:00:04]} Rf8 {[%emt 0:00:27]} 36. Nb6 {[%emt 0:00:55]} h6 {[%emt 0:00:29]} 37. Qd7 {[%emt 0:00:59]} Qxd3 {[%emt 0:00:24]} 38. Nd5 {[%emt 0:00:09]} Qf3 {[%emt 0:00:35]} 39. Nxf6+ {[%emt 0:00:17]} gxf6 {[%emt 0:00:02]} 40. Qe7 {[%emt 0:00:06]} Ra8 {[%emt 0:00:18]} 0-1

[Event "ESP-chT 2nd Division 2019"]
[Site "Linares"]
[Date "2019.08.21"]
[Round "4.31"]
[White "Ayats Llobera, Gerard"]
[Black "Torres Sanchez, Jose"]
[Result "1-0"]
[ECO "B32"]
[WhiteElo "2377"]
[BlackElo "2304"]
[Annotator "NA"]
[PlyCount "107"]
[EventDate "2019.08.19"]
[EventType "team-tourn"]
[EventCountry "ESP"]
[SourceTitle "playchess.com"]
[Source "ChessBase"]
[SourceQuality "1"]
[TimeControl "5400+30"]

1. e4 {[%emt 0:00:00]} c5 {[%emt 0:00:00]} 2. Nf3 {[%emt 0:00:00]} Nc6 {[%emt 0:00:18]} 3. d4 {[%emt 0:00:08]} cxd4 {[%emt 0:00:16]} 4. Nxd4 {[%emt 0:00:02]} Qb6 {[%emt 0:01:02]} 5. Nb3 {[%emt 0:00:35]} Nf6 {[%emt 0:00:32]} 6. Nc3 {[%emt 0:00:30]} e6 {[%emt 0:02:20]} 7. Be3 {[%emt 0:00:06]} Qc7 {[%emt 0:00:08]} 8. a3 {[%emt 0:00:04]} a6 {[%emt 0:00:59]} 9. f4 {[%emt 0:11:46]} d6 {[%emt 0:03:09]} 10. g4 {[%emt 0:03:40]} g5 {[%emt 0:06:14]} 11. fxg5 {[%emt 0:01:08]} Nd7 {[%emt 0:00:08]} 12. Bg2 {[%emt 0:11:13]} Nde5 {[%emt 0:00:38]} 13. O-O {[%emt 0:00:26]} Nc4 {[%emt 0:10:37]} 14. Bc1 {[%emt 0:04:15]} N4e5 {[%emt 0:08:26]} 15. h3 {[%emt 0:10:20]} Bd7 {[%emt 0:10:02]} 16. Ne2 {[%emt 0:01:15]} O-O-O {[%emt 0:21:19]} 17. Ng3 {[%emt 0:01:04]} h6 {[%emt 0:02:00]} 18. Qe2 {[%emt 0:03:30]} Kb8 {[%emt 0:06:31]} 19. Nh5 {[%emt 0:05:49]} Rc8 {[%emt 0:02:18]} 20. Nf6 {[%emt 0:01:36]} Ng6 {[%emt 0:03:00]} 21. gxh6 {[%emt 0:07:42]} Rxh6 {[%emt 0:02:30]} 22. Bxh6 {[%emt 0:13:10]} Bxh6 {[%emt 0:00:15]} 23. Rad1 {[%emt 0:00:01]} Nce5 {[%emt 0:02:49]} 24. Nxd7+ {[%emt 0:00:31]} Qxd7 {[%emt 0:00:05]} 25. Qf2 {[%emt 0:02:11]} Qc7 {[%emt 0:00:50]} 26. Nd4 {[%emt 0:00:59]} Bg5 {[%emt 0:00:38]} 27. c3 {[%emt 0:03:19]} Rh8 {[%emt 0:00:49]} 28. Nf3 {[%emt 0:02:26]} Nxf3+ {[%emt 0:00:39]} 29. Qxf3 {[%emt 0:00:03]} Qb6+ {[%emt 0:02:58]} 30. Kh1 {[%emt 0:00:16]} Ne5 {[%emt 0:00:08]} 31. Qf2 {[%emt 0:01:27]} Qc7 {[%emt 0:02:50]} 32. Qd4 {[%emt 0:00:46]} Be7 {[%emt 0:01:29]} 33. Kg1 {[%emt 0:07:36]} Rc8 {[%emt 0:00:28]} 34. Rf4 {[%emt 0:05:26]} Qc6 {[%emt 0:00:39]} 35. a4 {[%emt 0:01:26]} Qe8 {[%emt 0:00:21]} 36. b3 {[%emt 0:00:53]} Qh8 {[%emt 0:00:16]} 37. Rf2 {[%emt 0:01:35]} Qh4 {[%emt 0:00:46]} 38. Qe3 {[%emt 0:01:10]} Ka8 {[%emt 0:02:19]} 39. a5 {[%emt 0:00:14]} Bg5 {[%emt 0:01:18]} 40. Qe1 {[%emt 0:00:01]} Qg3 {[%emt 0:00:56]} 41. Rf1 {[%emt 0:00:28]} Qxe1 {[%emt 0:03:49]} 42. Rfxe1 {[%emt 0:00:11]} Rxc3 {[%emt 0:00:13]} 43. Rxd6 {[%emt 0:00:06]} Rxb3 {[%emt 0:00:18]} 44. Ra1 {[%emt 0:01:03]} Rb2 {[%emt 0:00:25]} 45. Kh1 {[%emt 0:00:29]} Bf4 {[%emt 0:00:29]} 46. Rd8+ {[%emt 0:00:11]} Ka7 {[%emt 0:00:10]} 47. Rg8 {[%emt 0:00:43]} Bg3 {[%emt 0:00:51]} 48. Rg7 {[%emt 0:00:45]} Ng6 {[%emt 0:03:33]} 49. Rxf7 {[%emt 0:00:35]} e5 {[%emt 0:00:52]} 50. g5 {[%emt 0:00:28]} Nf4 {[%emt 0:00:29]} 51. Rg1 {[%emt 0:00:46]} Nxh3 {[%emt 0:00:50]} 52. g6 {[%emt 0:00:19]} Bf4 {[%emt 0:00:30]} 53. Rxf4 {[%emt 0:00:47]} Nxf4 {[%emt 0:00:10]} 54. g7 {[%emt 0:00:15]} 1-0

[Event "ESP-chT 2nd Division 2019"]
[Site "Linares"]
[Date "2019.08.21"]
[Round "4.32"]
[White "Represa Perez, Mireya"]
[Black "Martin Gonzalez, Angel"]
[Result "1/2-1/2"]
[ECO "B27"]
[WhiteElo "2229"]
[BlackElo "2334"]
[Annotator "NA"]
[PlyCount "124"]
[EventDate "2019.08.19"]
[EventType "team-tourn"]
[EventCountry "ESP"]
[SourceTitle "playchess.com"]
[Source "ChessBase"]
[SourceQuality "1"]
[TimeControl "5400+30"]

1. e4 {[%emt 0:00:00]} c5 {[%emt 0:00:00]} 2. Nf3 {[%emt 0:00:00]} g6 {[%emt 0:00:05]} 3. d4 {[%emt 0:00:00]} Bg7 {[%emt 0:00:06]} 4. dxc5 {[%emt 0:00:00]} Qa5+ {[%emt 0:00:08]} 5. c3 {[%emt 0:00:08]} Qxc5 {[%emt 0:01:38]} 6. Na3 {[%emt 0:08:28]} Nf6 {[%emt 0:09:36]} 7. Nb5 {[%emt 0:02:24]} b6 {[%emt 0:13:55]} 8. Be3 {[%emt 0:09:26]} Qc6 {[%emt 0:00:13]} 9. Bd3 {[%emt 0:09:28]} Bb7 {[%emt 0:08:21]} 10. Nfd4 {[%emt 0:11:46]} Qc8 {[%emt 0:00:29]} 11. Bf4 {[%emt 0:00:20]} O-O {[%emt 0:01:26]} 12. O-O {[%emt 0:08:27]} d6 {[%emt 0:09:36]} 13. Bg5 {[%emt 0:07:18]} Nbd7 {[%emt 0:03:47]} 14. Bc2 {[%emt 0:03:26]} a6 {[%emt 0:06:13]} 15. Na3 {[%emt 0:00:22]} Qc5 {[%emt 0:00:35]} 16. Be3 {[%emt 0:03:27]} Qc7 {[%emt 0:02:44]} 17. Qe2 {[%emt 0:04:05]} b5 {[%emt 0:00:49]} 18. Rae1 {[%emt 0:04:02]} Rfe8 {[%emt 0:00:21]} 19. Bg5 {[%emt 0:01:03]} Nc5 {[%emt 0:02:25]} 20. Bxf6 {[%emt 0:03:58]} Bxf6 {[%emt 0:01:38]} 21. f4 {[%emt 0:00:30]} e5 {[%emt 0:07:53]} 22. Nb3 {[%emt 0:03:50]} exf4 {[%emt 0:03:49]} 23. Rxf4 {[%emt 0:00:10]} Be5 {[%emt 0:00:21]} 24. Rh4 {[%emt 0:01:10]} Re7 {[%emt 0:01:04]} 25. Nd2 {[%emt 0:00:40]} Rae8 {[%emt 0:00:40]} 26. Kh1 {[%emt 0:03:44]} d5 {[%emt 0:02:49]} 27. Qf2 {[%emt 0:08:57]} Bg7 {[%emt 0:03:59]} 28. Re3 {[%emt 0:03:25]} Nxe4 {[%emt 0:08:25]} 29. Nxe4 {[%emt 0:00:26]} dxe4 {[%emt 0:00:08]} 30. Bb3 {[%emt 0:00:46]} Re5 {[%emt 0:04:39]} 31. Nc2 {[%emt 0:01:52]} Rf5 {[%emt 0:00:27]} 32. Qe2 {[%emt 0:00:52]} Qd8 {[%emt 0:00:54]} 33. Rhh3 {[%emt 0:01:16]} Qd2 {[%emt 0:00:26]} 34. Kg1 {[%emt 0:00:24]} Qc1+ {[%emt 0:00:42]} 35. Ne1 {[%emt 0:00:01]} Rd8 {[%emt 0:00:12]} 36. Qg4 {[%emt 0:00:30]} Qxb2 {[%emt 0:00:55]} 37. Qh4 {[%emt 0:00:16]} Rd2 {[%emt 0:01:16]} 38. Qxh7+ {[%emt 0:00:28]} Kf8 {[%emt 0:00:01]} 39. Qh4 {[%emt 0:00:22]} Qc1 {[%emt 0:02:01]} 40. Qg3 Be5 {[%emt 0:00:26]} 41. Qh4 {[%emt 0:01:22]} Qb2 {[%emt 0:01:01]} 42. Qh6+ {[%emt 0:00:10]} Bg7 {[%emt 0:00:15]} 43. Qh4 {[%emt 0:00:06]} Rff2 {[%emt 0:00:45]} 44. Rd3 {[%emt 0:01:14]} Bf6 {[%emt 0:02:28]} 45. Rxd2 {[%emt 0:00:28]} Bxh4 {[%emt 0:01:57]} 46. Rxb2 {[%emt 0:00:02]} Rxb2 {[%emt 0:00:15]} 47. Rxh4 {[%emt 0:00:01]} Rb1 {[%emt 0:00:37]} 48. Kf2 {[%emt 0:00:54]} Kg7 {[%emt 0:00:20]} 49. Nc2 {[%emt 0:00:51]} a5 {[%emt 0:00:01]} 50. Nd4 {[%emt 0:01:22]} Rb2+ {[%emt 0:00:23]} 51. Ke3 {[%emt 0:00:30]} a4 {[%emt 0:00:24]} 52. Bxf7 {[%emt 0:00:23]} Rxg2 {[%emt 0:00:27]} 53. Nxb5 {[%emt 0:00:32]} Kxf7 {[%emt 0:01:17]} 54. Nd6+ {[%emt 0:00:22]} Kf6 {[%emt 0:00:02]} 55. Nxb7 {[%emt 0:00:06]} Rxa2 {[%emt 0:00:05]} 56. Rxe4 {[%emt 0:00:26]} a3 {[%emt 0:01:02]} 57. h4 {[%emt 0:00:58]} Ra1 {[%emt 0:00:02]} 58. Nc5 {[%emt 0:00:53]} a2 {[%emt 0:00:04]} 59. Nb3 {[%emt 0:00:13]} Rb1 {[%emt 0:00:19]} 60. Ra4 {[%emt 0:00:04]} Rxb3 {[%emt 0:00:02]} 61. Rxa2 {[%emt 0:00:03]} Rxc3+ {[%emt 0:00:00]} 62. Kf4 {[%emt 0:00:11]} Rc4+ {[%emt 0:00:03] Ke4 Ke5+} 1/2-1/2

[Event "ESP-chT 2nd Division 2019"]
[Site "Linares"]
[Date "2019.08.21"]
[Round "4.33"]
[White "Jimenez Ruano, Adrian"]
[Black "Meneses Gonzalez, Kevin Moises"]
[Result "1-0"]
[ECO "D31"]
[WhiteElo "2278"]
[BlackElo "2251"]
[Annotator "NA"]
[PlyCount "131"]
[EventDate "2019.08.19"]
[EventType "team-tourn"]
[EventCountry "ESP"]
[SourceTitle "playchess.com"]
[Source "ChessBase"]
[SourceQuality "1"]
[TimeControl "5400+30"]

1. d4 {[%emt 0:00:00]} d5 {[%emt 0:00:00]} 2. c4 {[%emt 0:01:38]} e6 {[%emt 0:00:00]} 3. Nc3 {[%emt 0:00:10]} a6 {[%emt 0:00:00]} 4. Nf3 {[%emt 0:07:37]} Nf6 {[%emt 0:00:16]} 5. cxd5 {[%emt 0:08:57]} exd5 {[%emt 0:00:21]} 6. Bg5 {[%emt 0:01:31]} Be6 {[%emt 0:00:05]} 7. e3 {[%emt 0:01:32]} Nbd7 {[%emt 0:00:14]} 8. Bd3 {[%emt 0:00:34]} Bd6 {[%emt 0:00:11]} 9. Bh4 {[%emt 0:07:03]} h6 {[%emt 0:01:08]} 10. Rc1 {[%emt 0:08:22]} c6 {[%emt 0:01:27]} 11. a3 {[%emt 0:05:35]} O-O {[%emt 0:00:34]} 12. O-O {[%emt 0:01:03]} Re8 {[%emt 0:01:43]} 13. Re1 {[%emt 0:06:42]} Qc7 {[%emt 0:01:36]} 14. e4 {[%emt 0:10:14]} dxe4 {[%emt 0:01:12]} 15. Nxe4 {[%emt 0:00:12]} Nxe4 {[%emt 0:02:36]} 16. Bxe4 {[%emt 0:00:07]} Qa5 {[%emt 0:14:12]} 17. Bb1 {[%emt 0:04:15]} Bf5 {[%emt 0:14:07]} 18. Rxe8+ {[%emt 0:00:05]} Rxe8 {[%emt 0:00:02]} 19. d5 {[%emt 0:00:00]} Bxb1 {[%emt 0:09:41]} 20. dxc6 {[%emt 0:00:20]} Ne5 {[%emt 0:00:14]} 21. Nxe5 {[%emt 0:23:51]} Rxe5 {[%emt 0:17:07]} 22. b4 {[%emt 0:00:39]} Qc7 {[%emt 0:01:57]} 23. cxb7 {[%emt 0:02:01]} Qxb7 {[%emt 0:03:19]} 24. Rxb1 {[%emt 0:01:37]} Qe4 {[%emt 0:00:39]} 25. Bg3 {[%emt 0:00:48]} Rd5 {[%emt 0:00:13]} 26. Qe1 {[%emt 0:00:37]} Qxe1+ {[%emt 0:00:42]} 27. Rxe1 {[%emt 0:00:01]} Bxg3 {[%emt 0:00:04]} 28. hxg3 {[%emt 0:00:16]} Rd3 {[%emt 0:00:27]} 29. Re8+ {[%emt 0:04:01]} Kh7 {[%emt 0:00:04]} 30. Re3 {[%emt 0:00:03]} Rd1+ {[%emt 0:00:03]} 31. Kh2 {[%emt 0:00:02]} Ra1 {[%emt 0:00:07]} 32. g4 {[%emt 0:02:23]} g5 {[%emt 0:00:28]} 33. Kg3 {[%emt 0:00:11]} Kg6 {[%emt 0:00:04]} 34. Rd3 {[%emt 0:01:02]} f6 {[%emt 0:01:04]} 35. Kf3 {[%emt 0:00:23]} Ra2 {[%emt 0:02:48]} 36. Ke3 {[%emt 0:00:21]} h5 {[%emt 0:00:25]} 37. gxh5+ {[%emt 0:01:38]} Kxh5 {[%emt 0:00:04]} 38. Kf3 {[%emt 0:01:42]} f5 {[%emt 0:00:29]} 39. g3 {[%emt 0:01:05]} g4+ {[%emt 0:00:16]} 40. Ke3 {[%emt 0:00:31]} Kg5 {[%emt 0:00:09]} 41. Rc3 {[%emt 0:00:15]} Rb2 {[%emt 0:00:37]} 42. Rd3 {[%emt 0:00:14]} Ra2 {[%emt 0:00:04]} 43. Rb3 {[%emt 0:01:01]} Kf6 {[%emt 0:01:39]} 44. Rc3 {[%emt 0:00:10]} Kg5 {[%emt 0:00:03]} 45. f4+ {[%emt 0:01:03]} gxf3 {[%emt 0:00:05]} 46. Kxf3 {[%emt 0:00:05]} Rb2 {[%emt 0:01:20]} 47. Rd3 {[%emt 0:00:37]} a5 {[%emt 0:01:20]} 48. bxa5 {[%emt 0:00:13]} Rb5 {[%emt 0:00:04]} 49. a4 {[%emt 0:00:20]} Rxa5 {[%emt 0:00:02]} 50. Ra3 {[%emt 0:00:01]} Kg6 {[%emt 0:02:10]} 51. Kf4 {[%emt 0:00:07]} Kf6 {[%emt 0:00:04]} 52. Ra1 {[%emt 0:00:22]} Kg6 {[%emt 0:00:08]} 53. Ra3 {[%emt 0:01:44]} Kf6 {[%emt 0:00:04]} 54. Ke3 {[%emt 0:00:49]} Kg5 {[%emt 0:00:04]} 55. Kf3 {[%emt 0:00:47]} Kg6 {[%emt 0:00:09]} 56. Ke2 {[%emt 0:00:11]} Kg5 {[%emt 0:00:04]} 57. Kd3 {[%emt 0:00:22]} Kg4 {[%emt 0:00:23]} 58. Kd4 {[%emt 0:00:15]} Ra8 {[%emt 0:00:24]} 59. a5 {[%emt 0:00:22]} Ra6 {[%emt 0:09:05]} 60. Kc5 {[%emt 0:00:31]} Kh3 {[%emt 0:04:41]} 61. Kb5 {[%emt 0:00:30]} Rg6 {[%emt 0:00:02]} 62. a6 {[%emt 0:00:17]} Rxg3 {[%emt 0:01:08]} 63. Rxg3+ {[%emt 0:00:16]} Kxg3 {[%emt 0:00:01]} 64. a7 {[%emt 0:00:17]} f4 {[%emt 0:00:02]} 65. a8=Q {[%emt 0:00:12]} f3 {[%emt 0:00:03]} 66. Kc4 {[%emt 0:01:06]} 1-0

[Event "ESP-chT 2nd Division 2019"]
[Site "Linares"]
[Date "2019.08.21"]
[Round "4.34"]
[White "Ballester Sanz, Joaquin"]
[Black "Cano Sevilla, Ivan"]
[Result "0-1"]
[ECO "B38"]
[WhiteElo "2027"]
[BlackElo "1995"]
[Annotator "NA"]
[PlyCount "142"]
[EventDate "2019.08.19"]
[EventType "team-tourn"]
[EventCountry "ESP"]
[SourceTitle "playchess.com"]
[Source "ChessBase"]
[SourceQuality "1"]
[TimeControl "5400+30"]

1. e4 {[%emt 0:00:00]} c5 {[%emt 0:00:00]} 2. Nf3 {[%emt 0:00:00]} g6 {[%emt 0:00:00]} 3. d4 {[%emt 0:00:00]} cxd4 {[%emt 0:00:00]} 4. Nxd4 {[%emt 0:00:07]} Bg7 {[%emt 0:00:00]} 5. c4 {[%emt 0:00:22]} Nc6 {[%emt 0:00:09]} 6. Be3 {[%emt 0:00:22]} Nf6 {[%emt 0:00:04]} 7. Nc3 {[%emt 0:00:22]} d6 {[%emt 0:00:06]} 8. Be2 {[%emt 0:00:24]} O-O {[%emt 0:00:07]} 9. O-O {[%emt 0:00:34]} Bd7 {[%emt 0:00:10]} 10. h3 {[%emt 0:01:12]} Nxd4 {[%emt 0:00:07]} 11. Bxd4 {[%emt 0:00:15]} Bc6 {[%emt 0:00:01]} 12. Qc2 {[%emt 0:01:22]} a5 {[%emt 0:01:38]} 13. Rad1 {[%emt 0:02:50]} Nd7 {[%emt 0:01:31]} 14. Bxg7 {[%emt 0:00:37]} Kxg7 {[%emt 0:00:03]} 15. Bg4 {[%emt 0:03:04]} Nc5 {[%emt 0:05:08]} 16. e5 {[%emt 0:00:37]} h5 {[%emt 0:00:23]} 17. Be2 {[%emt 0:00:44]} Qc7 {[%emt 0:08:38]} 18. exd6 {[%emt 0:00:18]} exd6 19. Nd5 {[%emt 0:04:16]} Bxd5 {[%emt 0:02:37]} 20. Rxd5 {[%emt 0:00:19]} Ne6 {[%emt 0:01:35]} 21. Qd2 {[%emt 0:11:43]} Rad8 {[%emt 0:06:38]} 22. Rd1 {[%emt 0:00:59]} Rfe8 {[%emt 0:04:39]} 23. Bf1 {[%emt 0:11:17]} Nc5 {[%emt 0:06:41]} 24. g3 {[%emt 0:05:59]} Kg8 {[%emt 0:01:24]} 25. Rxd6 {[%emt 0:02:50]} Rxd6 {[%emt 0:04:35]} 26. Qxd6 {[%emt 0:00:03]} Qxd6 {[%emt 0:00:09]} 27. Rxd6 {[%emt 0:00:03]} Re1 {[%emt 0:00:23]} 28. Kg2 {[%emt 0:03:47]} Rb1 {[%emt 0:01:29]} 29. Rd2 {[%emt 0:04:31]} a4 {[%emt 0:02:32]} 30. Be2 {[%emt 0:02:12]} Kf8 {[%emt 0:04:39]} 31. h4 {[%emt 0:00:47]} Ke7 {[%emt 0:01:10]} 32. Bf3 {[%emt 0:07:10]} b6 {[%emt 0:01:09]} 33. Bd5 {[%emt 0:01:03]} a3 {[%emt 0:04:37]} 34. bxa3 {[%emt 0:00:19]} Rc1 {[%emt 0:00:16]} 35. Rb2 {[%emt 0:05:52]} Nd7 {[%emt 0:02:28]} 36. a4 {[%emt 0:01:01]} Rc3 {[%emt 0:00:29]} 37. Re2+ {[%emt 0:05:33]} Kf8 {[%emt 0:01:07]} 38. Re3 {[%emt 0:02:41]} Rc2 {[%emt 0:00:33]} 39. Ra3 {[%emt 0:04:55]} Ne5 {[%emt 0:00:35]} 40. a5 {[%emt 0:05:16]} bxa5 {[%emt 0:00:53]} 41. Rxa5 Nxc4 {[%emt 0:07:40]} 42. Ra8+ {[%emt 0:01:52]} Kg7 {[%emt 0:00:01]} 43. Bxc4 {[%emt 0:04:48]} Rxc4 {[%emt 0:00:01]} 44. a4 {[%emt 0:01:46]} Rc3 {[%emt 0:00:07]} 45. a5 {[%emt 0:00:15]} Ra3 {[%emt 0:00:06]} 46. a6 {[%emt 0:00:07]} Kh7 {[%emt 0:00:06]} 47. Kf1 {[%emt 0:00:30]} Ra2 {[%emt 0:00:05]} 48. Ke1 {[%emt 0:00:17]} Kg7 49. Kd1 {[%emt 0:03:39]} Rxf2 {[%emt 0:00:45]} 50. Kc1 {[%emt 0:00:09]} Ra2 {[%emt 0:00:00]} 51. Kb1 {[%emt 0:00:19]} Ra5 {[%emt 0:02:13]} 52. Kb2 {[%emt 0:00:17]} Kf6 {[%emt 0:00:17]} 53. Kb3 {[%emt 0:00:17]} Kf5 {[%emt 0:00:24]} 54. Kb4 {[%emt 0:00:36]} Ra1 {[%emt 0:00:17]} 55. Kb5 {[%emt 0:00:51]} Kg4 {[%emt 0:00:16]} 56. Rd8 {[%emt 0:02:16]} Kxg3 {[%emt 0:00:54]} 57. Rd4 {[%emt 0:00:55]} f5 {[%emt 0:08:52]} 58. Ra4 {[%emt 0:02:20]} Rb1+ {[%emt 0:00:10]} 59. Rb4 {[%emt 0:00:07]} Re1 {[%emt 0:04:15]} 60. a7 {[%emt 0:00:40]} Re8 {[%emt 0:00:05]} 61. Kc4 {[%emt 0:01:32]} Ra8 {[%emt 0:00:17]} 62. Rb7 {[%emt 0:00:10]} Kxh4 {[%emt 0:00:09]} 63. Kd3 {[%emt 0:00:20]} g5 64. Ke2 {[%emt 0:00:14]} Kg3 {[%emt 0:01:43]} 65. Kf1 {[%emt 0:00:24]} f4 {[%emt 0:00:15]} 66. Kg1 {[%emt 0:00:24]} g4 {[%emt 0:00:16]} 67. Kh1 {[%emt 0:00:18]} h4 {[%emt 0:01:28]} 68. Kg1 {[%emt 0:00:09]} Kh3 {[%emt 0:02:40]} 69. Kh1 {[%emt 0:00:11]} g3 {[%emt 0:00:57]} 70. Kg1 {[%emt 0:00:32]} f3 {[%emt 0:00:22]} 71. Rh7 {[%emt 0:02:54]} Rd8 {[%emt 0:00:38]} 0-1